Workbook

Sheet Area Triángulo 1
A2: Coordenadas Tríangulo | F2: 1. Matriz con Excel ↓ | L2: 2. Matemáticamente ↓
F3: Matriz Determinada → | I3: MDETERM | L3: =A2 -> Coordenadas Tríangulo
A4: A | B4: 2 | C4: 9 | D4: → | E4: =A4&" ("&B4&" , "&C4&")" -> A (2 , 9) | G4: 1 | H4: =B4 -> 2 | I4: 9 | L4: =H4 -> 2 | M4: 9
A5: B | B5: -2 | C5: 1 | D5: → | E5: =A5&" ("&B5&" , "&C5&")" -> B (-2 , 1) | F5: A= | G5: 1 | H5: -2 | I5: 1 | L5: -2 | M5: 1
A6: C | B6: -5 | C6: 3 | D6: → | E6: =A6&" ("&B6&" , "&C6&")" -> C (-5 , 3) | G6: 1 | H6: -5 | I6: 3 | J6: Area | K6: =1/2*ABS(MDETERM(G4:I6)) -> 16 | L6: -5 | M6: 3 | N6: Area | O6: =ABS(L4*M5+L5*M6+L6*M7-L7*M6-L6*M5-L5*M4)/2 -> 16
A7: Coordenadas a cambiar ↑ | L7: =L4 -> 2 | M7: =M4 -> 9
F8: 3. Con Razones Trigonométricas | L8: 4. Con Fórmula de "Herón" | N8: Posición
L9: Distancia 1 | M9: =((L4-L5)^2+(M4-M5)^2)^(1/2) -> 8.94427191 | N9: =_xlfn.RANK.EQ(M9,$M$9:$M$11,0)+ COUNTIF($M$9:M9,M9)-1 -> 2
L10: Distancia 2 | M10: =((L5-L6)^2+(M5-M6)^2)^(1/2) -> 3.605551275 | N10: =_xlfn.RANK.EQ(M10,$M$9:$M$11,0)+ COUNTIF($M$9:M10,M10)-1 -> 3
L11: Distancia 3 | M11: =((L6-L7)^2+(M6-M7)^2)^(1/2) -> 9.219544457 | N11: =_xlfn.RANK.EQ(M11,$M$9:$M$11,0)+ COUNTIF($M$9:M11,M11)-1 -> 1
J12: Area= | K12: =1/2*(INDEX($M$9:$N$11,MATCH(2,$N$9:$N$11,0),1)*MAX($M$9:$M$11))*SIN((MIN($J$17:$J$19)*PI()/180)) -> 16 | L12: p= | M12: =SUM(M9:M11)/2 -> 10.88468382 | N12: Area= | O12: =($M$12*($M$12-$M$9)*($M$12-$M$10)*($M$12-$M$11))^(1/2) -> 16
A16: No Eliminar esta Fila→ | F16: =J6&"= "&K6 -> Area= 16
G17: Cos C | H17: =($M$10^2+$M$11^2-$M$9^2)/(2*$M$10*$M$11) -> 0.2707455769 | I17: Ángulo C= | J17: =ACOS(H17)*180/PI() -> 74.29136217
G18: Cos B | H18: =($M$9^2+$M$10^2-$M$11^2)/(2*$M$9*$M$10) -> 0.1240347346 | I18: Ángulo B= | J18: =ACOS(H18)*180/PI() -> 82.87498365
G19: Cos A | H19: =($M$9^2+$M$11^2-$M$10^2)/(2*$M$9*$M$11) -> 0.9216353751 | I19: Ángulo A= | J19: =ACOS(H19)*180/PI() -> 22.83365418
I20: Σ= | J20: =SUM(J17:J19) -> 180 | K20: Hipotemusa² = | M20: =CONCATENATE("a","²"," + ","b","²") -> a² + b²
K21: =MAX($M$9:$M$11)^2 -> 85 | L21: = | M21: =(INDEX(M9:N11,MATCH(2,$N$9:$N$11,0),1))^2+MIN($M$9:$M$11)^2 -> 93 | N21: =IF(MAX(M9:M11)^2=(MIN(M9:M11)^2+M11^2),"Es Tríangulo Rectángulo", "No es Triángulo Rectángulo") -> No es Triángulo Rectángulo
L22: Alturas | M22: h1= | N22: =(2/MIN($M$9:$M$11)*($M$12*($M$12-$M$9)*($M$12-$M$10)*($M$12-$M$11))^(1/2)) -> 8.87520314
M23: h2= | N23: =(2/M11)*($M$12*($M$12-$M$9)*($M$12-$M$10)*($M$12-$M$11))^(1/2) -> 3.470887325

Sheet Area Triángulo 2
A2: Coordenadas Tríangulo | F2: 1. Matriz con Excel ↓ | L2: 2. Matemáticamente ↓
F3: Matriz Determinada → | I3: MDETERM | L3: =A2 -> Coordenadas Tríangulo
A4: A | B4: -5 | C4: 2 | D4: → | E4: =A4&" ("&B4&" , "&C4&")" -> A (-5 , 2) | G4: 1 | H4: =B4 -> -5 | I4: 2 | L4: =H4 -> -5 | M4: 2
A5: B | B5: -5 | C5: 8 | D5: → | E5: =A5&" ("&B5&" , "&C5&")" -> B (-5 , 8) | F5: A= | G5: 1 | H5: -5 | I5: 8 | L5: -5 | M5: 8
A6: C | B6: 9 | C6: 2 | D6: → | E6: =A6&" ("&B6&" , "&C6&")" -> C (9 , 2) | G6: 1 | H6: 9 | I6: 2 | J6: Area | K6: =1/2*ABS(MDETERM(G4:I6)) -> 42 | L6: 9 | M6: 2 | N6: Area | O6: =ABS(L4*M5+L5*M6+L6*M7-L7*M6-L6*M5-L5*M4)/2 -> 42
A7: Coordenadas a cambiar ↑ | L7: =L4 -> -5 | M7: =M4 -> 2
F8: 3. Con Razones Trigonométricas | L8: 4. Con Fórmula de "Herón" | N8: Posición
L9: Distancia 1 | M9: =((L4-L5)^2+(M4-M5)^2)^(1/2) -> 6 | N9: =_xlfn.RANK.EQ(M9,$M$9:$M$11,0)+ COUNTIF($M$9:M9,M9)-1 -> 3
L10: Distancia 2 | M10: =((L5-L6)^2+(M5-M6)^2)^(1/2) -> 15.23154621 | N10: =_xlfn.RANK.EQ(M10,$M$9:$M$11,0)+ COUNTIF($M$9:M10,M10)-1 -> 1
L11: Distancia 3 | M11: =((L6-L7)^2+(M6-M7)^2)^(1/2) -> 14 | N11: =_xlfn.RANK.EQ(M11,$M$9:$M$11,0)+ COUNTIF($M$9:M11,M11)-1 -> 2
J12: Area= | K12: =1/2*(INDEX($M$9:$N$11,MATCH(2,$N$9:$N$11,0),1)*MAX($M$9:$M$11))*SIN((MIN($J$17:$J$19)*PI()/180)) -> 42 | L12: p= | M12: =SUM(M9:M11)/2 -> 17.61577311 | N12: Area= | O12: =($M$12*($M$12-$M$9)*($M$12-$M$10)*($M$12-$M$11))^(1/2) -> 42
A16: No Eliminar esta Fila→ | F16: =J6&"= "&K6 -> Area= 42
G17: Cos C | H17: =($M$10^2+$M$11^2-$M$9^2)/(2*$M$10*$M$11) -> 0.91914503 | I17: Ángulo C= | J17: =ACOS(H17)*180/PI() -> 23.19859051
G18: Cos B | H18: =($M$9^2+$M$10^2-$M$11^2)/(2*$M$9*$M$10) -> 0.3939192986 | I18: Ángulo B= | J18: =ACOS(H18)*180/PI() -> 66.80140949
G19: Cos A | H19: =($M$9^2+$M$11^2-$M$10^2)/(2*$M$9*$M$11) -> -1.691768418e-16 | I19: Ángulo A= | J19: =ACOS(H19)*180/PI() -> 90
I20: Σ= | J20: =SUM(J17:J19) -> 180 | K20: Hipotemusa² = | M20: =CONCATENATE("a","²"," + ","b","²") -> a² + b²
K21: =MAX($M$9:$M$11)^2 -> 232 | L21: = | M21: =(INDEX(M9:N11,MATCH(2,$N$9:$N$11,0),1))^2+MIN($M$9:$M$11)^2 -> 232 | N21: =IF(MAX(M9:M11)^2=(MIN(M9:M11)^2+M11^2),"Es Tríangulo Rectángulo", "No es Triángulo Rectángulo") -> Es Tríangulo Rectángulo
L22: Alturas | M22: h1= | N22: =(2/MIN($M$9:$M$11)*($M$12*($M$12-$M$9)*($M$12-$M$10)*($M$12-$M$11))^(1/2)) -> 14
M23: h2= | N23: =(2/M11)*($M$12*($M$12-$M$9)*($M$12-$M$10)*($M$12-$M$11))^(1/2) -> 6
